[Event "Titled Tuesday Blitz February 14 Early 2023"]
[White "Demchenko, Anton"]
[Black "AyMitecK"]
[WhiteFideId "4160258"]
[WhiteElo "2623"]
[BlackElo "2484"]
[Result "1-0"]
[Round "08"]
[TimeControl "180+2"]
[Date "2023.02.14"]
[WhiteClock "0:00:06"]
[BlackClock "0:00:01"]

1. e4 {[%clk 0:03:00]}  e6 {[%clk 0:02:59]} 2. d4 {[%clk 0:03:00]}  d5 {[%clk 0:02:59]} 3. Nc3 {[%clk 0:03:01]}  Nf6 {[%clk 0:02:59]} 4. e5 {[%clk 0:03:01]}  Nfd7 {[%clk 0:02:59]} 5. Nce2 {[%clk 0:03:02]}  c5 {[%clk 0:02:59]} 6. c3 {[%clk 0:03:03]}  Nc6 {[%clk 0:03:00]} 7. f4 {[%clk 0:03:03]}  Qb6 {[%clk 0:02:55]} 8. Nf3 {[%clk 0:03:03]}  f6 {[%clk 0:02:55]} 9. g3 {[%clk 0:03:01]}  cxd4 {[%clk 0:02:53]} 10. cxd4 {[%clk 0:02:57]}  Bb4+ {[%clk 0:02:53]} 11. Kf2 {[%clk 0:02:54]}  fxe5 {[%clk 0:02:50]} 12. fxe5 {[%clk 0:02:52]}  Ndxe5 {[%clk 0:02:49]} 13. Nxe5 {[%clk 0:02:30]}  Nxe5 {[%clk 0:02:48]} 14. Kg2 {[%clk 0:02:08]}  Ng6 {[%clk 0:02:21]} 15. h4 {[%clk 0:02:05]}  O-O {[%clk 0:02:19]} 16. h5 {[%clk 0:02:04]}  Ne7 {[%clk 0:02:20]} 17. Be3 {[%clk 0:01:47]}  e5 {[%clk 0:02:11]} 18. Qb3 {[%clk 0:01:41]}  Bg4 {[%clk 0:01:57]} 19. dxe5 {[%clk 0:01:35]}  Bf3+ {[%clk 0:01:53]} 20. Kg1 {[%clk 0:01:35]}  Bc5 {[%clk 0:01:28]} 21. Qxb6 {[%clk 0:01:34]}  Bxb6 {[%clk 0:01:28]} 22. Bxb6 {[%clk 0:01:33]}  axb6 {[%clk 0:01:11]} 23. Rh2 {[%clk 0:01:33]}  Nc6 {[%clk 0:01:09]} 24. e6 {[%clk 0:01:25]}  Bxe2 {[%clk 0:00:58]} 25. Rxe2 {[%clk 0:00:47]}  Nd4 {[%clk 0:00:57]} 26. Rf2 {[%clk 0:00:47]}  Nxe6 {[%clk 0:00:54]} 27. Bg2 {[%clk 0:00:44]}  Rfd8 {[%clk 0:00:53]} 28. Rd2 {[%clk 0:00:42]}  d4 {[%clk 0:00:52]} 29. Bxb7 {[%clk 0:00:40]}  Ra7 {[%clk 0:00:52]} 30. Bg2 {[%clk 0:00:34]}  Nc5 {[%clk 0:00:49]} 31. Rad1 {[%clk 0:00:17]}  Rxa2 {[%clk 0:00:48]} 32. Rxd4 {[%clk 0:00:14]}  Rxd4 {[%clk 0:00:49]} 33. Rxd4 {[%clk 0:00:15]}  Rxb2 {[%clk 0:00:50]} 34. Bd5+ {[%clk 0:00:14]}  Kf8 {[%clk 0:00:50]} 35. Rf4+ {[%clk 0:00:15]}  Ke8 {[%clk 0:00:49]} 36. Rg4 {[%clk 0:00:13]}  Kf8 {[%clk 0:00:43]} 37. Rf4+ {[%clk 0:00:13]}  Ke8 {[%clk 0:00:42]} 38. Rg4 {[%clk 0:00:13]}  g6 {[%clk 0:00:40]} 39. hxg6 {[%clk 0:00:13]}  hxg6 {[%clk 0:00:41]} 40. Rxg6 {[%clk 0:00:13]}  Ke7 {[%clk 0:00:37]} 41. g4 {[%clk 0:00:11]}  Nd3 {[%clk 0:00:36]} 42. Re6+ {[%clk 0:00:10]}  Kd7 {[%clk 0:00:35]} 43. Re3 {[%clk 0:00:11]}  Nf4 {[%clk 0:00:34]} 44. Be4 {[%clk 0:00:11]}  Ne2+ {[%clk 0:00:31]} 45. Kf2 {[%clk 0:00:11]}  Nd4+ {[%clk 0:00:29]} 46. Kg3 {[%clk 0:00:11]}  Ne2+ {[%clk 0:00:29]} 47. Kh4 {[%clk 0:00:10]}  Nf4 {[%clk 0:00:28]} 48. g5 {[%clk 0:00:09]}  Rb4 {[%clk 0:00:25]} 49. Kg3 {[%clk 0:00:09]}  Nh5+ {[%clk 0:00:23]} 50. Kg4 {[%clk 0:00:08]}  Ng7 {[%clk 0:00:23]} 51. g6 {[%clk 0:00:09]}  Kd6 {[%clk 0:00:22]} 52. Kg5 {[%clk 0:00:09]}  Ne6+ {[%clk 0:00:21]} 53. Kf6 {[%clk 0:00:10]}  Nf4 {[%clk 0:00:20]} 54. g7 {[%clk 0:00:07]}  Nh5+ {[%clk 0:00:20]} 55. Kg6 {[%clk 0:00:08]}  Nxg7 {[%clk 0:00:19]} 56. Kxg7 {[%clk 0:00:09]}  Ke5 {[%clk 0:00:18]} 57. Bc6+ {[%clk 0:00:08]}  Kd6 {[%clk 0:00:18]} 58. Be8 {[%clk 0:00:07]}  Rf4 {[%clk 0:00:18]} 59. Bf7 {[%clk 0:00:07]}  Kc5 {[%clk 0:00:17]} 60. Re5+ {[%clk 0:00:07]}  Kd4 {[%clk 0:00:16]} 61. Rg5 {[%clk 0:00:07]}  Rf1 {[%clk 0:00:14]} 62. Kf8 {[%clk 0:00:07]}  Kc3 {[%clk 0:00:13]} 63. Ke7 {[%clk 0:00:07]}  Rd1 {[%clk 0:00:12]} 64. Be6 {[%clk 0:00:07]}  Rb1 {[%clk 0:00:11]} 65. Bd7 {[%clk 0:00:07]}  Re1+ {[%clk 0:00:10]} 66. Kd6 {[%clk 0:00:08]}  Rd1+ {[%clk 0:00:11]} 67. Kc6 {[%clk 0:00:08]}  Kc4 {[%clk 0:00:07]} 68. Be6+ {[%clk 0:00:07]}  Kb4 {[%clk 0:00:07]} 69. Rg4+ {[%clk 0:00:07]}  Kc3 {[%clk 0:00:07]} 70. Bd5 {[%clk 0:00:06]}  b5 {[%clk 0:00:06]} 71. Kc5 {[%clk 0:00:06]}  b4 {[%clk 0:00:06]} 72. Rg3+ {[%clk 0:00:07]}  Kb2 {[%clk 0:00:04]} 73. Bc4 {[%clk 0:00:07]}  Rd8 {[%clk 0:00:02]} 74. Rb3+ {[%clk 0:00:08]}  Kc2 {[%clk 0:00:02]} 75. Rxb4 {[%clk 0:00:08]}  Rc8+ {[%clk 0:00:02]} 76. Kd4 {[%clk 0:00:08]}  Rd8+ {[%clk 0:00:03]} 77. Bd5 {[%clk 0:00:09]}  Kd2 {[%clk 0:00:03]} 78. Rb2+ {[%clk 0:00:09]}  Kc1 {[%clk 0:00:03]} 79. Rh2 {[%clk 0:00:09]}  Rf8 {[%clk 0:00:04]} 80. Ke4 {[%clk 0:00:09]}  Re8+ {[%clk 0:00:02]} 81. Kd3 {[%clk 0:00:10]}  Rh8 {[%clk 0:00:03]} 82. Rc2+ {[%clk 0:00:09]}  Kb1 {[%clk 0:00:03]} 83. Rf2 {[%clk 0:00:10]}  Rd8 {[%clk 0:00:03]} 84. Kc4 {[%clk 0:00:11]}  Re8 {[%clk 0:00:03]} 85. Bc6 {[%clk 0:00:10]}  Rc8 {[%clk 0:00:04]} 86. Kc5 {[%clk 0:00:08]}  Kc1 {[%clk 0:00:05]} 87. Rf6 {[%clk 0:00:07]}  Kd1 {[%clk 0:00:06]} 88. Rd6+ {[%clk 0:00:08]}  Ke2 {[%clk 0:00:06]} 89. Kd4 {[%clk 0:00:09]}  Kf2 {[%clk 0:00:06]} 90. Be4 {[%clk 0:00:09]}  Rc7 {[%clk 0:00:06]} 91. Rh6 {[%clk 0:00:09]}  Kg3 {[%clk 0:00:06]} 92. Rg6+ {[%clk 0:00:09]}  Kf4 {[%clk 0:00:07]} 93. Rf6+ {[%clk 0:00:10]}  Kg5 {[%clk 0:00:07]} 94. Rf1 {[%clk 0:00:10]}  Kg4 {[%clk 0:00:08]} 95. Ke3 {[%clk 0:00:09]}  Rc3+ {[%clk 0:00:08]} 96. Bd3 {[%clk 0:00:09]}  Ra3 {[%clk 0:00:09]} 97. Rg1+ {[%clk 0:00:09]}  Kh5 {[%clk 0:00:10]} 98. Ke4 {[%clk 0:00:09]}  Kh6 {[%clk 0:00:10]} 99. Bc4 {[%clk 0:00:09]}  Ra4 {[%clk 0:00:11]} 100. Kd4 {[%clk 0:00:09]}  Kh5 {[%clk 0:00:12]} 101. Kd5 {[%clk 0:00:09]}  Ra5+ {[%clk 0:00:12]} 102. Ke6 {[%clk 0:00:09]}  Ra6+ {[%clk 0:00:12]} 103. Ke5 {[%clk 0:00:08]}  Ra5+ {[%clk 0:00:12]} 104. Bd5 {[%clk 0:00:09]}  Ra4 {[%clk 0:00:13]} 105. Kf5 {[%clk 0:00:08]}  Kh4 {[%clk 0:00:12]} 106. Be4 {[%clk 0:00:07]}  Kh3 {[%clk 0:00:12]} 107. Kf4 {[%clk 0:00:07]}  Ra2 {[%clk 0:00:10]} 108. Rg7 {[%clk 0:00:05]}  Rf2+ {[%clk 0:00:05]} 109. Bf3 {[%clk 0:00:05]}  Kh2 {[%clk 0:00:01]} 110. Rh7+ {[%clk 0:00:05]}  Kg1 {[%clk 0:00:01]} 111. Rh1# {[%clk 0:00:06]} 1-0


[Site "https://www.chess.com"]

[Event "Titled Tuesday Blitz February 14 Early 2023"]
[White "Rustemov, Alexander"]
[Black "Ilkhomi, Jaloliddin"]
[WhiteFideId "4119002"]
[BlackFideId "14700948"]
[WhiteElo "2525"]
[BlackElo "1997"]
[Result "1-0"]
[Round "08"]
[TimeControl "180+2"]
[Date "2023.02.14"]
[WhiteClock "0:00:32"]
[BlackClock "0:00:07"]

1. d4 {[%clk 0:02:56]}  Nf6 {[%clk 0:02:59]} 2. c4 {[%clk 0:02:56]}  e6 {[%clk 0:02:59]} 3. Nf3 {[%clk 0:02:56]}  b6 {[%clk 0:02:59]} 4. a3 {[%clk 0:02:56]}  Bb7 {[%clk 0:02:59]} 5. Nc3 {[%clk 0:02:56]}  d5 {[%clk 0:02:59]} 6. Bg5 {[%clk 0:02:56]}  Be7 {[%clk 0:02:58]} 7. Bxf6 {[%clk 0:02:57]}  Bxf6 {[%clk 0:02:58]} 8. cxd5 {[%clk 0:02:58]}  exd5 {[%clk 0:02:59]} 9. Qa4+ {[%clk 0:02:58]}  Qd7 {[%clk 0:02:36]} 10. Qxd7+ {[%clk 0:02:54]}  Nxd7 {[%clk 0:02:37]} 11. e3 {[%clk 0:02:55]}  Ke7 {[%clk 0:02:25]} 12. Rc1 {[%clk 0:02:40]}  c5 {[%clk 0:02:20]} 13. Bb5 {[%clk 0:02:34]}  cxd4 {[%clk 0:02:13]} 14. Nxd4 {[%clk 0:02:25]}  Bxd4 {[%clk 0:02:12]} 15. exd4 {[%clk 0:02:24]}  Nf6 {[%clk 0:02:07]} 16. f3 {[%clk 0:02:21]}  a6 {[%clk 0:01:59]} 17. Bd3 {[%clk 0:02:20]}  Kd6 {[%clk 0:01:55]} 18. Na4 {[%clk 0:02:15]}  Bc6 {[%clk 0:01:28]} 19. Nc3 {[%clk 0:02:10]}  Rhe8+ {[%clk 0:01:24]} 20. Kd2 {[%clk 0:02:10]}  g6 {[%clk 0:01:13]} 21. Rc2 {[%clk 0:02:03]}  Bd7 {[%clk 0:01:07]} 22. Rhc1 {[%clk 0:02:02]}  Rec8 {[%clk 0:01:03]} 23. g4 {[%clk 0:01:57]}  b5 {[%clk 0:00:42]} 24. h4 {[%clk 0:01:46]}  Rc6 {[%clk 0:00:37]} 25. Ne2 {[%clk 0:01:44]}  Rac8 {[%clk 0:00:36]} 26. Rxc6+ {[%clk 0:01:41]}  Rxc6 {[%clk 0:00:37]} 27. Re1 {[%clk 0:01:37]}  Rc8 {[%clk 0:00:37]} 28. Nf4 {[%clk 0:01:37]}  Re8 {[%clk 0:00:38]} 29. Rc1 {[%clk 0:01:35]}  Rc8 {[%clk 0:00:37]} 30. Rh1 {[%clk 0:01:35]}  h6 {[%clk 0:00:13]} 31. Bc2 {[%clk 0:01:30]}  Rg8 {[%clk 0:00:06]} 32. Nd3 {[%clk 0:01:27]}  Be6 {[%clk 0:00:03]} 33. Nc5 {[%clk 0:01:26]}  Ra8 {[%clk 0:00:04]} 34. Bd3 {[%clk 0:01:23]}  Nd7 {[%clk 0:00:04]} 35. b4 {[%clk 0:01:23]}  Nxc5 {[%clk 0:00:04]} 36. bxc5+ {[%clk 0:01:17]}  Kc6 {[%clk 0:00:04]} 37. a4 {[%clk 0:01:12]}  bxa4 {[%clk 0:00:02]} 38. Ra1 {[%clk 0:01:11]}  Bd7 {[%clk 0:00:02]} 39. Rxa4 {[%clk 0:01:11]}  Kb7 {[%clk 0:00:03]} 40. Rb4+ {[%clk 0:01:10]}  Kc7 {[%clk 0:00:04]} 41. Kc3 {[%clk 0:01:05]}  a5 {[%clk 0:00:04]} 42. Rb2 {[%clk 0:01:02]}  a4 {[%clk 0:00:04]} 43. Ra2 {[%clk 0:01:02]}  Rb8 {[%clk 0:00:04]} 44. Bc2 {[%clk 0:01:01]}  Ra8 {[%clk 0:00:05]} 45. Ra3 {[%clk 0:00:56]}  f5 {[%clk 0:00:04]} 46. g5 {[%clk 0:00:56]}  hxg5 {[%clk 0:00:04]} 47. hxg5 {[%clk 0:00:56]}  Re8 {[%clk 0:00:04]} 48. Bxa4 {[%clk 0:00:55]}  Bxa4 {[%clk 0:00:05]} 49. Rxa4 {[%clk 0:00:55]}  Re3+ {[%clk 0:00:05]} 50. Kd2 {[%clk 0:00:51]}  Rxf3 {[%clk 0:00:05]} 51. Ra6 {[%clk 0:00:50]}  Rf4 {[%clk 0:00:04]} 52. Ke3 {[%clk 0:00:47]}  Re4+ {[%clk 0:00:04]} 53. Kd3 {[%clk 0:00:47]}  Rg4 {[%clk 0:00:04]} 54. Rxg6 {[%clk 0:00:47]}  Rg3+ {[%clk 0:00:04]} 55. Ke2 {[%clk 0:00:47]}  Rg4 {[%clk 0:00:03]} 56. Ke3 {[%clk 0:00:47]}  Re4+ {[%clk 0:00:03]} 57. Kd3 {[%clk 0:00:47]}  Rg4 {[%clk 0:00:04]} 58. Rd6 {[%clk 0:00:46]}  Rxg5 {[%clk 0:00:04]} 59. Rxd5 {[%clk 0:00:46]}  Kc6 {[%clk 0:00:04]} 60. Kc4 {[%clk 0:00:44]}  Rh5 {[%clk 0:00:03]} 61. Rd6+ {[%clk 0:00:44]}  Kc7 {[%clk 0:00:03]} 62. Rf6 {[%clk 0:00:45]}  Kd7 {[%clk 0:00:03]} 63. d5 {[%clk 0:00:43]}  Ke7 {[%clk 0:00:04]} 64. Re6+ {[%clk 0:00:42]}  Kd7 {[%clk 0:00:03]} 65. c6+ {[%clk 0:00:43]}  Kd8 {[%clk 0:00:03]} 66. d6 {[%clk 0:00:41]}  Rh1 {[%clk 0:00:02]} 67. Rf6 {[%clk 0:00:40]}  Rc1+ {[%clk 0:00:02]} 68. Kd5 {[%clk 0:00:40]}  Rd1+ {[%clk 0:00:03]} 69. Ke5 {[%clk 0:00:40]}  Re1+ {[%clk 0:00:03]} 70. Kxf5 {[%clk 0:00:41]}  Rf1+ {[%clk 0:00:04]} 71. Kg6 {[%clk 0:00:37]}  Rg1+ {[%clk 0:00:04]} 72. Kf7 {[%clk 0:00:38]}  Rc1 {[%clk 0:00:05]} 73. d7 {[%clk 0:00:32]}  Re1 {[%clk 0:00:05]} 74. Re6 {[%clk 0:00:32]}  Rf1+ {[%clk 0:00:05]} 75. Kg6 {[%clk 0:00:32]}  Rg1+ {[%clk 0:00:05]} 76. Kf5 {[%clk 0:00:33]}  Rf1+ {[%clk 0:00:06]} 77. Kg4 {[%clk 0:00:33]}  Rg1+ {[%clk 0:00:06]} 78. Kf3 {[%clk 0:00:33]}  Kc7 {[%clk 0:00:07]} 79. Re8 {[%clk 0:00:32]}  Rd1 {[%clk 0:00:07]} 80. Rc8+ {[%clk 0:00:32]} 1-0


[Site "https://www.chess.com"]

[Event "Titled Tuesday Blitz February 14 Early 2023"]
[White "Kaidanov, Gregory"]
[Black "Ajay, Karthikeyan"]
[WhiteFideId "2008564"]
[BlackFideId "35011685"]
[WhiteElo "2559"]
[BlackElo "2454"]
[Result "1-0"]
[Round "08"]
[TimeControl "180+2"]
[Date "2023.02.14"]
[WhiteClock "0:01:09"]
[BlackClock "0:00:10"]

1. Nf3 {[%clk 0:03:00]}  Nc6 {[%clk 0:02:56]} 2. d4 {[%clk 0:02:59]}  d5 {[%clk 0:02:56]} 3. g3 {[%clk 0:02:59]}  Bf5 {[%clk 0:02:55]} 4. Bg2 {[%clk 0:02:59]}  Qd7 {[%clk 0:02:55]} 5. c4 {[%clk 0:02:57]}  dxc4 {[%clk 0:02:51]} 6. Nc3 {[%clk 0:02:56]}  O-O-O {[%clk 0:02:51]} 7. d5 {[%clk 0:02:46]}  Nb4 {[%clk 0:02:47]} 8. Nd4 {[%clk 0:02:46]}  e5 {[%clk 0:02:40]} 9. Nxf5 {[%clk 0:02:43]}  Qxf5 {[%clk 0:02:41]} 10. O-O {[%clk 0:02:43]}  Nf6 {[%clk 0:02:32]} 11. Qa4 {[%clk 0:02:40]}  a6 {[%clk 0:02:20]} 12. a3 {[%clk 0:02:23]}  Nbxd5 {[%clk 0:02:11]} 13. Nxd5 {[%clk 0:02:23]}  Nxd5 {[%clk 0:02:10]} 14. Qxc4 {[%clk 0:02:22]}  Nb6 {[%clk 0:02:05]} 15. Qb3 {[%clk 0:02:22]}  Bc5 {[%clk 0:02:00]} 16. Be3 {[%clk 0:02:19]}  Bxe3 {[%clk 0:01:37]} 17. Qxe3 {[%clk 0:02:14]}  Kb8 {[%clk 0:01:36]} 18. Rac1 {[%clk 0:02:14]}  Rd4 {[%clk 0:01:01]} 19. Rc5 {[%clk 0:02:10]}  Rhd8 {[%clk 0:00:48]} 20. Rxe5 {[%clk 0:02:08]}  Qf6 {[%clk 0:00:44]} 21. Rc5 {[%clk 0:01:49]}  c6 {[%clk 0:00:43]} 22. Qb3 {[%clk 0:01:45]}  Na4 {[%clk 0:00:34]} 23. Rxc6 {[%clk 0:01:40]}  Qe7 {[%clk 0:00:27]} 24. Rc2 {[%clk 0:01:29]}  Nc5 {[%clk 0:00:18]} 25. Qb6 {[%clk 0:01:25]}  Ne6 {[%clk 0:00:18]} 26. e3 {[%clk 0:01:14]}  R4d6 {[%clk 0:00:17]} 27. Qb4 {[%clk 0:01:13]}  Qd7 {[%clk 0:00:15]} 28. h4 {[%clk 0:01:11]}  Rd2 {[%clk 0:00:10]} 29. Rxd2 {[%clk 0:01:09]}  Qxd2 {[%clk 0:00:10]} 30. Qxb7# {[%clk 0:01:09]} 1-0


[Site "https://www.chess.com"]

[Event "Titled Tuesday Blitz February 14 Early 2023"]
[White "Sovetov, Oleksandr"]
[Black "Costachi, Mihnea"]
[WhiteFideId "34105786"]
[BlackFideId "1217518"]
[WhiteElo "1976"]
[BlackElo "2476"]
[Result "0-1"]
[Round "08"]
[TimeControl "180+2"]
[Date "2023.02.14"]
[WhiteClock "0:00:40"]
[BlackClock "0:02:18"]

1. Nf3 {[%clk 0:02:53]}  Nf6 {[%clk 0:02:59]} 2. c4 {[%clk 0:02:53]}  Nc6 {[%clk 0:02:59]} 3. Nc3 {[%clk 0:02:52]}  e5 {[%clk 0:02:59]} 4. e3 {[%clk 0:02:51]}  d5 {[%clk 0:02:58]} 5. cxd5 {[%clk 0:02:49]}  Nxd5 {[%clk 0:02:58]} 6. Bb5 {[%clk 0:02:46]}  Nxc3 {[%clk 0:02:58]} 7. bxc3 {[%clk 0:02:45]}  Bd6 {[%clk 0:02:59]} 8. d4 {[%clk 0:02:43]}  exd4 {[%clk 0:02:59]} 9. exd4 {[%clk 0:02:41]}  O-O {[%clk 0:02:58]} 10. O-O {[%clk 0:02:41]}  Bg4 {[%clk 0:02:59]} 11. h3 {[%clk 0:02:39]}  Bh5 {[%clk 0:03:00]} 12. Bd3 {[%clk 0:02:35]}  Qf6 {[%clk 0:02:58]} 13. Re1 {[%clk 0:02:30]}  Rfe8 {[%clk 0:02:57]} 14. Be3 {[%clk 0:02:27]}  h6 {[%clk 0:02:57]} 15. Rb1 {[%clk 0:02:28]}  Nd8 {[%clk 0:02:54]} 16. Bg5 {[%clk 0:02:09]}  Rxe1+ {[%clk 0:02:53]} 17. Qxe1 {[%clk 0:02:08]}  hxg5 {[%clk 0:02:53]} 18. Qe8+ {[%clk 0:02:07]}  Bf8 {[%clk 0:02:53]} 19. Rxb7 {[%clk 0:01:48]}  Nxb7 {[%clk 0:02:50]} 20. Qxa8 {[%clk 0:01:48]}  Bxf3 {[%clk 0:02:51]} 21. gxf3 {[%clk 0:01:47]}  Qxf3 {[%clk 0:02:51]} 22. Ba6 {[%clk 0:01:37]}  Qd1+ {[%clk 0:02:51]} 23. Kg2 {[%clk 0:01:37]}  Nd6 {[%clk 0:02:51]} 24. Qxa7 {[%clk 0:01:36]}  g4 {[%clk 0:02:42]} 25. hxg4 {[%clk 0:01:26]}  Qxg4+ {[%clk 0:02:42]} 26. Kf1 {[%clk 0:01:24]}  Qh3+ {[%clk 0:02:41]} 27. Kg1 {[%clk 0:01:23]}  Qxc3 {[%clk 0:02:41]} 28. Bf1 {[%clk 0:01:19]}  Nf5 {[%clk 0:02:37]} 29. d5 {[%clk 0:01:19]}  Bd6 {[%clk 0:02:31]} 30. Qa8+ {[%clk 0:01:17]}  Kh7 {[%clk 0:02:30]} 31. Qe8 {[%clk 0:01:12]}  Qf6 {[%clk 0:02:29]} 32. Qe4 {[%clk 0:01:09]}  g6 {[%clk 0:02:29]} 33. a4 {[%clk 0:01:07]}  Qg5+ {[%clk 0:02:29]} 34. Qg2 {[%clk 0:00:54]}  Nh4 {[%clk 0:02:27]} 35. Qxg5 {[%clk 0:00:53]}  Nf3+ {[%clk 0:02:28]} 36. Kg2 {[%clk 0:00:52]}  Nxg5 {[%clk 0:02:29]} 37. a5 {[%clk 0:00:53]}  Kg7 {[%clk 0:02:27]} 38. a6 {[%clk 0:00:47]}  Bc5 {[%clk 0:02:28]} 39. Bd3 {[%clk 0:00:46]}  Kf6 {[%clk 0:02:26]} 40. f4 {[%clk 0:00:47]}  Nh7 {[%clk 0:02:25]} 41. Kf3 {[%clk 0:00:47]}  Ke7 {[%clk 0:02:19]} 42. Bb5 {[%clk 0:00:40]}  Nf6 {[%clk 0:02:17]} 43. Bc6 {[%clk 0:00:40]}  Kd6 {[%clk 0:02:18]} 0-1


[Site "https://www.chess.com"]

[Event "Titled Tuesday Blitz February 14 Early 2023"]
[White "Matinian, Nikita"]
[Black "Jeet, Jain"]
[WhiteFideId "24129100"]
[BlackFideId "5073022"]
[WhiteElo "2407"]
[BlackElo "2199"]
[Result "1-0"]
[Round "08"]
[TimeControl "180+2"]
[Date "2023.02.14"]
[WhiteClock "0:00:26"]
[BlackClock "0:00:16"]

1. e4 {[%clk 0:03:00]}  e5 {[%clk 0:02:54]} 2. Nf3 {[%clk 0:03:01]}  Nc6 {[%clk 0:02:54]} 3. Bb5 {[%clk 0:03:00]}  a6 {[%clk 0:02:54]} 4. Ba4 {[%clk 0:03:00]}  Nf6 {[%clk 0:02:55]} 5. O-O {[%clk 0:03:00]}  b5 {[%clk 0:02:55]} 6. Bb3 {[%clk 0:03:00]}  Bc5 {[%clk 0:02:56]} 7. c3 {[%clk 0:02:59]}  d6 {[%clk 0:02:56]} 8. d4 {[%clk 0:02:59]}  Bb6 {[%clk 0:02:56]} 9. Be3 {[%clk 0:02:55]}  O-O {[%clk 0:02:48]} 10. h3 {[%clk 0:02:52]}  h6 {[%clk 0:02:47]} 11. Nbd2 {[%clk 0:02:51]}  exd4 {[%clk 0:02:45]} 12. cxd4 {[%clk 0:02:50]}  Na5 {[%clk 0:02:45]} 13. Bc2 {[%clk 0:02:49]}  Re8 {[%clk 0:02:31]} 14. a4 {[%clk 0:02:31]}  Bb7 {[%clk 0:02:29]} 15. e5 {[%clk 0:02:18]}  Nd5 {[%clk 0:02:19]} 16. axb5 {[%clk 0:02:07]}  axb5 {[%clk 0:02:10]} 17. Qe2 {[%clk 0:01:48]}  Nxe3 {[%clk 0:02:09]} 18. fxe3 {[%clk 0:01:47]}  Nc4 {[%clk 0:02:00]} 19. Rxa8 {[%clk 0:01:40]}  Qxa8 {[%clk 0:01:39]} 20. Nxc4 {[%clk 0:01:29]}  bxc4 {[%clk 0:01:39]} 21. Qxc4 {[%clk 0:01:06]}  Ba6 {[%clk 0:01:33]} 22. Qc3 {[%clk 0:01:00]}  Bxf1 {[%clk 0:01:32]} 23. Kxf1 {[%clk 0:01:01]}  Qa6+ {[%clk 0:01:23]} 24. Kf2 {[%clk 0:01:00]}  d5 {[%clk 0:01:02]} 25. g4 {[%clk 0:00:58]}  Rc8 {[%clk 0:00:50]} 26. b4 {[%clk 0:00:49]}  Qb5 {[%clk 0:00:44]} 27. g5 {[%clk 0:00:49]}  hxg5 {[%clk 0:00:39]} 28. Nxg5 {[%clk 0:00:49]}  Qd7 {[%clk 0:00:37]} 29. Qd3 {[%clk 0:00:46]}  g6 {[%clk 0:00:37]} 30. e6 {[%clk 0:00:47]}  Qd6 {[%clk 0:00:20]} 31. Kg2 {[%clk 0:00:33]}  f5 {[%clk 0:00:19]} 32. Qb5 {[%clk 0:00:23]}  Kg7 {[%clk 0:00:17]} 33. Qd7+ {[%clk 0:00:23]}  Qxd7 {[%clk 0:00:17]} 34. exd7 {[%clk 0:00:24]}  Rd8 {[%clk 0:00:12]} 35. Ne6+ {[%clk 0:00:24]}  Kf7 {[%clk 0:00:13]} 36. Nxd8+ {[%clk 0:00:25]}  Ke7 {[%clk 0:00:14]} 37. Nc6+ {[%clk 0:00:24]}  Kxd7 {[%clk 0:00:15]} 38. Ne5+ {[%clk 0:00:24]}  Ke6 {[%clk 0:00:15]} 39. Nxg6 {[%clk 0:00:25]}  c6 {[%clk 0:00:16]} 40. Nf4+ {[%clk 0:00:26]}  Kf6 {[%clk 0:00:16]} 41. Ba4 {[%clk 0:00:26]} 1-0


[Site "https://www.chess.com"]

[Event "Titled Tuesday Blitz February 14 Early 2023"]
[White "Md, Imran"]
[Black "Lucassen, Mickey"]
[WhiteFideId "25748580"]
[BlackFideId "12919110"]
[WhiteElo "2284"]
[BlackElo "2023"]
[Result "0-1"]
[Round "08"]
[TimeControl "180+2"]
[Date "2023.02.14"]
[WhiteClock "0:00:20"]
[BlackClock "0:00:45"]

1. d4 {[%clk 0:02:31]}  Nf6 {[%clk 0:02:59]} 2. c4 {[%clk 0:02:31]}  g6 {[%clk 0:02:55]} 3. Nc3 {[%clk 0:02:28]}  d5 {[%clk 0:02:55]} 4. e4 {[%clk 0:02:29]}  dxe4 {[%clk 0:02:54]} 5. f3 {[%clk 0:02:23]}  exf3 {[%clk 0:02:53]} 6. Nxf3 {[%clk 0:02:24]}  Bg7 {[%clk 0:02:53]} 7. Be3 {[%clk 0:02:24]}  Bf5 {[%clk 0:02:51]} 8. Bd3 {[%clk 0:02:23]}  Bxd3 {[%clk 0:02:50]} 9. Qxd3 {[%clk 0:02:24]}  O-O {[%clk 0:02:50]} 10. O-O-O {[%clk 0:02:24]}  c6 {[%clk 0:02:49]} 11. Kb1 {[%clk 0:02:24]}  Nbd7 {[%clk 0:02:49]} 12. h4 {[%clk 0:02:25]}  h5 {[%clk 0:02:45]} 13. Bf4 {[%clk 0:02:24]}  Qa5 {[%clk 0:02:35]} 14. Ka1 {[%clk 0:02:24]}  a6 {[%clk 0:02:32]} 15. Rhe1 {[%clk 0:02:19]}  Rfe8 {[%clk 0:02:26]} 16. Ne5 {[%clk 0:02:18]}  Rad8 {[%clk 0:02:21]} 17. Qe2 {[%clk 0:02:04]}  Nxe5 {[%clk 0:02:00]} 18. dxe5 {[%clk 0:02:05]}  Ng4 {[%clk 0:01:53]} 19. Rc1 {[%clk 0:01:42]}  e6 {[%clk 0:01:33]} 20. Qe4 {[%clk 0:01:17]}  Nf2 {[%clk 0:01:26]} 21. Qe3 {[%clk 0:00:34]}  Nd3 {[%clk 0:01:22]} 22. Rc2 {[%clk 0:00:28]}  Nxe1 {[%clk 0:00:48]} 23. Qxe1 {[%clk 0:00:29]}  Rd4 {[%clk 0:00:48]} 24. Bd2 {[%clk 0:00:20]}  Qxe5 {[%clk 0:00:45]} 0-1


[Site "https://www.chess.com"]